{"text_format":"1","workbook":"xlsx","n_sheets":1,"sheets":["CPTI"],"not_rendered":{"charts":0,"images":1,"macros":1,"external_links":1,"defined_names":6,"comments":0,"pivot_tables":0},"unopened":[],"bounds":{"document_bytes":16777216,"sheet_cells":100000,"rows_first":2000,"rows_last":500,"rows_between":2000,"halvings":0,"cell_chars":16384,"cell_head_chars":4096},"cells_cut":0,"cells_raw":0,"read":"whole","date_system":"1900"}

{"sheet":"CPTI","index":0,"n_rows":212,"n_cols":25,"rows_kept":212,"cut":false,"hidden":false,"merged":[[180,8,180,9],[181,8,181,9],[182,8,182,9],[180,1,180,7],[181,1,181,7],[182,1,182,7],[0,1,0,9],[0,14,0,15],[3,1,3,7],[4,7,4,9],[5,1,5,7],[5,8,5,9],[6,1,6,7],[6,8,6,9],[7,1,7,7],[7,8,7,9],[8,1,8,7],[8,8,8,9],[9,1,9,7],[9,8,9,9],[10,1,10,7],[11,1,11,7],[12,1,12,7],[12,8,12,9],[23,1,23,7],[23,8,23,9],[13,1,13,7],[13,8,13,9],[14,1,14,7],[15,1,15,7],[15,8,15,9],[18,8,18,9],[19,1,19,7],[19,8,19,9],[20,1,20,7],[21,1,21,7],[59,1,59,7],[48,1,48,7],[49,1,49,7],[50,1,50,7],[51,1,51,7],[52,1,52,7],[53,1,53,7],[54,1,54,7],[55,1,55,7],[56,1,56,7],[57,1,57,7],[58,1,58,7],[81,1,81,7],[70,1,70,7],[71,1,71,7],[72,1,72,7],[73,1,73,7],[74,1,74,7],[75,1,75,7],[76,1,76,7],[77,1,77,7],[78,1,78,7],[79,1,79,7],[80,1,80,7],[109,1,109,7],[82,1,82,7],[90,1,90,7],[97,1,97,7],[98,1,98,7],[99,1,99,7],[100,1,100,7],[101,1,101,7],[102,1,102,7],[103,1,103,7],[104,1,104,7],[108,1,108,7],[169,1,169,7],[171,1,171,7],[111,1,111,7],[111,8,111,9],[113,1,113,7],[113,9,113,11],[114,5,115,5],[114,8,115,8],[124,1,124,11],[125,1,125,11],[179,1,179,7],[179,8,179,9],[179,10,179,11],[183,10,183,11],[16,6,16,7],[17,6,17,7],[173,8,173,9],[174,1,174,7],[174,8,174,9],[175,8,175,9],[178,8,178,9],[178,10,178,11],[130,1,130,7],[150,1,150,7],[167,1,167,7],[168,1,168,7]]}
[null,"Règle des 80 % - Calcul du capital de pension CPTI maximal à assurer",null,null,null,null,null,null,null,null,null,null,null,null,"Parameters"]
[]
[]
[null,"Données Générales"]
[null,null,null,null,null,null,null,null,null,null,null,null,null,null,{"$f":"NOW()-60","v":"2023-08-27T09:48:49.680"}]
[null,"Date du calcul",null,null,null,null,null,null,"2023-01-01",null,null,null,null,null,"Eindleeftijd","ongehuwd","gehuwd",null,"Feitelijk samenwonend = Ongehuwd"]
[null,"Nom du preneur d'assurance",null,null,null,null,null,null,"Personne X",null,null,null,null,null,60,15.6389,18.3749,null,"Wettelijk samenwonend = Gehuwd",null,null,null,null,null,"Contracttypes 2de pijler"]
[null,"Sexe",null,null,null,null,null,null,"Homme",null,null,null,null,null,61,15.198,17.927700000000002,null,null,null,null,null,null,null,"Assurance de groupe"]
[null,"Date de naissance",null,null,null,null,null,null,"1990-01-01",null,null,null,null,null,62,14.7559,17.476299999999998,null,"Samenlevingsvorm","Marié(e)",1,null,null,null,"EIP"]
[null,null,null,null,null,null,null,null,null,null,null,null,null,null,63,14.3133,17.020900000000001,null,null,"Cohabitant légal",2,null,null,null,"PLCI"]
[null,"Age",null,null,null,null,null,null,{"$f":"TRUNC(DAYS360(I9,I6)/360)","v":33},{"$f":"TRUNC(DAYS360(I9,I6)/30-TRUNC(DAYS360(I9,I6)/360)*12)","v":0},null,null,null,null,64,13.8705,16.562100000000001,null,null,"Célibataire",3,null,null,null,"INAMI"]
[null,"Age normal de Pension (AA)",null,null,null,null,null,null,{"$f":"IF(I9<=DATE(1959,12,31),65,IF(I9<=DATE(1963,12,31),66,67))","v":67},0,null,null,null,null,65,13.4282,16.1004,null,null,"Cohabitant",4,null,null,null,"ADE"]
[null,"Date fin du contrat",null,null,null,null,null,null,{"$f":"DATE(YEAR(I9)+I12,MONTH(I9)+1,1)","v":"2057-02-01"},null,null,null,null,null,null,null,null,null,null,"Veuve / Veuf",5,null,null,null,"CPTI"]
[null,"Sitation familiale",null,null,null,null,null,null,"Célibataire",null,null,null,null,null,"Geslacht","Homme",1,null,null,"Divorcé",6]
[null,null,null,null,null,null,null,null,null,null,null,null,null,null,null,"Femme",2]
[null,"Date de début de l'activité professionnelle (quel que soit le statut)",null,null,null,null,null,null,"2020-01-01"]
[null,"Années d'activité en tant qu'indépendant avant 2021",null,null,null,null,"(première cellule YY ; deuxième cellule MM)",null,0,0]
[null,"Années d'activité en tant que salarié avant 2021",null,null,null,null,"(première cellule YY ; deuxième cellule MM)",null,{"$f":"IF(YEAR(I16)>=2021,0,ROUNDDOWN((DAYS360(I16,\"01/01/2021\")-(I17*360)-(J17*30))/360,0))","v":1},{"$f":"IF(YEAR(I16)>=2021,0,ROUNDDOWN(((DAYS360(I16,\"01/01/2021\")-(I17*360)-(J17*30))-(I18*360))/30,0))","v":0}]
[null,"Rémunération brute 2020",null,null,null,null,null,null,0]
[null,"Date de début de la première CPTI",null,null,null,null,null,null,"2020-01-01",null,null,null,null,null,"Eindleeftijd","0%  I / 0% O","2%  I / 0% O","0%  I / 80% O","2%  I / 80% O"]
[null,"Années déjà prestées depuis la date de début de la première CPTI jusqu'à la date de calcul                                                       ",null,null,null,null,null,null,{"$f":"TRUNC(DAYS360(I20,I6)/360)","v":3},{"$f":"TRUNC(DAYS360(I20,I6)/30-TRUNC(DAYS360(I20,I6)/360)*12)","v":0},null,null,null,null,40,17.706299999999999,23.673300000000001,19.0075,26.042100000000001]
[null,"Années encore à prester          ",null,null,null,null,null,null,{"$f":"IF($J$12>=$J$11,$I$12-$I$11,$I$12-($I$11+1))","v":34},{"$f":"IF($J$12>=$J$11,$J$12-$J$11,12+$J$12-$J$11)","v":0},null,null,null,null,41,17.524699999999999,23.322500000000002,18.861599999999999,25.723600000000001]
[null,"Années déjà prestées (quel que soit le statut) depuis le 01/01/2018 jusqu'à la première CPTI (max 10)",null,null,null,null,null,"Valider",{"$f":"IF(VLOOKUP(H23,$O$82:$P$83,2,FALSE)=1,IF(YEAR(I16)>=YEAR(I20),0,MIN(TRUNC(DAYS360(MAX(DATE(2018,1,1),I16),I20)/360),10)),0)","v":0},{"$f":"IF(VLOOKUP(H23,$O$82:$P$83,2,FALSE)=1,IF(I23=10,0,TRUNC(DAYS360(MAX(DATE(2018,1,1),I16),I20)/30)-TRUNC(DAYS360(MAX(DATE(2018,1,1),I16),I20)/360)*12),0)","v":0},null,null,null,null,42,17.3371,22.965499999999999,18.710100000000001,25.398299999999999]
[null,"Nombre de mois d'activité professionnelle ",null,null,null,null,null,null,{"$f":"MIN((($I$21*12)+$J$21) + (($I$22*12)+$J$22) + (($I$23*12)+$J$23),480)","v":444},null,null,null,null,null,43,17.1434,22.602399999999999,18.552600000000002,25.065899999999999]
[null,null,null,null,null,null,null,null,null,null,null,null,null,null,44,16.9436,22.2331,18.388999999999999,24.726400000000002]
[null,null,null,null,null,null,null,null,null,null,null,null,null,null,45,16.7376,21.857800000000001,18.219200000000001,24.379899999999999]
[null,"Détermination du revenu de référence ",null,null,null,null,null,null,"Année de calcul",null,{"$f":"YEAR(I6)","v":2023},null,null,null,46,16.525400000000001,21.476700000000001,18.042999999999999,24.026399999999999]
[null,null,null,null,null,null,null,null,null,null,null,null,null,null,47,16.306899999999999,21.0899,17.860299999999999,23.665800000000001]
[null,"Le revenu de référence de l'actuelle année civile X est égal à la moyenne du revenu professionnel imposable corrigé des trois années civiles précédentes (X-3, X-2 et X-1). ",null,null,null,null,null,null,null,null,null,null,null,null,48,16.082100000000001,20.697399999999998,17.6709,23.298200000000001]
[null,"Le revenu professionnel imposable corrigé = le revenu du travailleur indépendant ou de l'aidant indépendant qualifié comme bénéfices ou profits, ou les rémunérations du conjoint aidant avec ",null,null,null,null,null,null,null,null,null,null,null,null,49,15.851000000000001,20.299600000000002,17.474699999999999,22.9236]
[null,"maxi-statut (hors bénéfices et profits d'une activité professionnelle antérieure et les plus-values), diminuées des frais professionnels, exception faite des cotisations sociales payées ",null,null,null,null,null,null,null,null,null,null,null,null,50,15.6137,19.896599999999999,17.271699999999999,22.542000000000002]
[null,"(comme travailleur indépendant, comme aidant indépendant ou comme conjoint aidant avec maxi-statut) et des primes payées pour la PLCI et PLC sociale.",null,null,null,null,null,null,null,null,null,null,null,null,51,15.370100000000001,19.488600000000002,17.061599999999999,22.153700000000001]
[null,null,null,null,null,null,null,null,null,null,null,null,null,null,52,15.1203,19.075800000000001,16.8445,21.758600000000001]
[null,"Principes applicables :",null,null,null,null,null,null,null,null,null,null,null,null,53,14.8644,18.6585,16.620200000000001,21.3568]
[null,"1) Un revenu professionnel imposable corrigé négatif pour une ou plusieurs des années civiles précédentes n'est pas mis à 0, mais est repris dans le calcul de la moyenne. ",null,null,null,null,null,null,null,null,null,null,null,null,54,14.602499999999999,18.237100000000002,16.3886,20.948599999999999]
[null,"2) Si l'activité professionnelle n'a pas été exercée pendant l'année civile entière, le revenu professionnel imposable corrigé n'est pas extrapolé sur une base annuelle. ",null,null,null,null,null,null,null,null,null,null,null,null,55,14.3347,17.811699999999998,16.149799999999999,20.534099999999999]
[null,"3) Si, dans une ou plusieurs des trois années civiles précédentes, l'assuré n'a pas exercé une activité professionnelle produisant des bénéfices ou des profits ou n'a pas été actif comme ",null,null,null,null,null,null,null,null,null,null,null,null,56,14.061199999999999,17.3828,15.903700000000001,20.113499999999998]
[null,"     conjoint aidant avec maxi-statut ou comme aidant indépendant, il faut compléter par \"NVT\" (pas d'application). ",null,null,null,null,null,null,null,null,null,null,null,null,57,13.782,16.950700000000001,15.6503,19.687000000000001]
[null,"4) Pour l'année civile dans laquelle l'activité professionnelle de l'assuré a débuté, le revenu professionnel imposable corrigé estimé de l'année civile même est pris en considération",null,null,null,null,null,null,null,null,null,null,null,null,58,13.497400000000001,16.515699999999999,15.389699999999999,19.254799999999999]
[null,"   (Si ce revenu n’est pas encore connu, celui-ci, peut être estimé)",null,null,null,null,null,null,null,null,null,null,null,null,59,13.207700000000001,16.078299999999999,15.1219,18.817399999999999]
[null,"Vous pouvez déterminer le revenu de référence en reprenant les chiffres de la déclaration ou de l'avertissement extrait de rôle",null,null,null,null,null,null,null,null,null,null,null,null,60,12.913,15.6389,14.847,18.3749]
[null,null,null,null,null,null,null,null,null,null,null,null,null,null,61,12.6137,15.198,14.565099999999999,17.927700000000002]
[null,"1. Catégorie 'Bénéfices'",null,null,null,null,null,null,null,null,null,null,null,null,62,12.31,14.7559,14.276400000000001,17.476299999999998]
[null,"Bénéfices = revenus comme indépendant dans le cadre d'une activité dans des entreprises industrielles, commerciales ou agricoles : bénéfice brut de l'exploitation proprement dite ",null,null,null,null,null,null,null,null,null,null,null,null,63,12.0023,14.3133,13.981,17.020900000000001]
[null,{"$f":" \"Si le code “1600 of 2600” est complété pour au moins une année dans \" & K27-3 & \", \" & K27-2 & \", \" & K27-1 & \" ?\"","v":"Si le code “1600 of 2600” est complété pour au moins une année dans 2020, 2021, 2022 ?"},null,null,null,null,null,null,null,null,null,null,null,null,64,11.690799999999999,13.8705,13.6791,16.562100000000001]
[null,{"$f":"\"             Si oui : Veuillez remplir les champs pour les 3 années.\"","v":"             Si oui : Veuillez remplir les champs pour les 3 années."},null,null,null,null,null,null,null,null,null,null,null,null,65,11.376099999999999,13.4282,13.3711,16.1004]
[null,{"$f":"\"             Si non: Veuillez remplir le montant pour l'année \" & $K$27 & \".\"","v":"             Si non: Veuillez remplir le montant pour l'année 2023."}]
[null,null,null,null,null,null,null,null,null,null,null,null,null,null,"GWP","min","max (25 %)","max"]
[null,"Bénéfices",null,null,null,null,null,null,{"$f":"\"X-3 (\" & $K$27-3 & \")\"","v":"X-3 (2020)"},{"$f":"\"X-2 (\" & $K$27-2 & \")\"","v":"X-2 (2021)"},{"$f":"\"X-1 (\" & $K$27-1 & \")\"","v":"X-1 (2022)"},{"$f":"\"X (\" & $K$27 & \")\"","v":"X (2023)"},null,null,2012,12085.2,15781.672500000001,63126.69]
[null,"1600 / 2600 bénéfice brut de l'exploitation proprement dite (+)",null,null,null,null,null,null,0,0,0,0,null,null,2013,12574.11,16073.8125,64295.25]
[null,"1606 / 2606 autres frais professionnels (-)",null,null,null,null,null,null,0,0,0,0,null,null,2014,12731.29,{"$f":"R51/4","v":16123.682500000001},64494.73]
[null,"1611 / 2611 rémunérations attribuées à votre conjoint aidant ou cohabitant légal aidant (-)",null,null,null,null,null,null,0,0,0,0,null,null,2015,12731.29,16123.93,64495.73]
[null,"1635 / 2635 Bénéfices antérieurement exonérés qui deviennent imposables (à l'exclusion des plus-values): montant de l'exonération pour pertes professionnelles futures qui a été demandée pour l'exercice d'imposition 2020 (+)",null,null,null,null,null,null,0,0,0,0,null,null,2016,13108.32,{"$f":"R53/4","v":16299.352500000001},65197.41]
[null,"1601 / 2601 Autres bénéfices antérieurement exonérés qui deviennent imposables (à l'exclusion des plus-values) (+)",null,null,null,null,null,null,0,0,0,0,null,null,2017,14122.89,{"$f":"R54/4","v":16657.127499999999},66628.509999999995]
[null,"1602 / 2602 Résultats financiers (+)",null,null,null,null,null,null,0,0,0,0,null,null,2018,14650.34,16975.650000000001,67902.600000000006]
[null,"1615 / 2615 Bénéfice correspondant aux frais réels de réalisation d'éléments de l'actif sur lesquels vous avez réalisé une plus-value (imposable ou non) pendant la période imposable, et qui ont été déduits antérieurement (+)",null,null,null,null,null,null,0,0,0,0,null,null,2019,14838.59,17347.580000000002,69390.33]
[null,"1607 / 2607 Indemnités imposables distinctement à 12,5 % (+)",null,null,null,null,null,null,0,0,0,0,null,null,2020,15196.38,17530.97,70123.89]
[null,"1605 / 2605 Indemnités imposables distinctement à 16,5 %, dont parfois le droit passerelle (+)",null,null,null,null,null,null,0,0,0,0,null,null,2021,15911.04,17592.11,70368.42]
[null,"1618 / 2618 Indemnités imposables distinctement à 33 % (+)",null,null,null,null,null,null,0,0,0,0,null,null,2022,17332.349999999999,18363.64,73454.55]
[null,"1610 / 2610 Indemnités imposables globalement, dont parfois le droit passerelle (+)",null,null,null,null,null,null,0,0,0,0,null,null,2023,19643.990000000002,{"$f":"0.25*R60","v":21610.26},86441.04]
[null,"Revenu professionnel imposable corrigé",null,null,null,null,null,null,{"$f":"+I50-I51-I52+I53+I54+I55+I56+I57+I58+I59+I60","v":0},{"$f":"+J50-J51-J52+J53+J54+J55+J56+J57+J58+J59+J60","v":0},0,0,null,null,2024]
[null,null,null,null,null,null,null,null,null,null,null,null,null,null,2025]
[null,null,null,null,null,null,null,null,null,null,null,null,null,null,2026]
[null,"2. Catégorie ‘Profits’",null,null,null,null,null,null,null,null,null,null,null,null,2027]
[null,"Profits = revenus comme indépendant de professions libérales, charges, offices ou autres occupations lucratives : recettes provenant de l'exercice de la profession  ",null,null,null,null,null,null,null,null,null,null,null,null,2028]
[null,"           = les revenus des indépendants exerçant des fonctions (par exemple notaire, commissaire aux comptes, huissier)",null,null,null,null,null,null,null,null,null,null,null,null,2029]
[null,{"$f":" \"Si le code “1650 of 2650” est complété pour au moins une année dans \" & K27-3 & \", \" & K27-2 & \", \" & K27-1 & \" ?\"","v":"Si le code “1650 of 2650” est complété pour au moins une année dans 2020, 2021, 2022 ?"},null,null,null,null,null,null,null,null,null,null,null,null,2030]
[null,{"$f":"\"             Si oui : Veuillez remplir les champs pour les 3 années.\"","v":"             Si oui : Veuillez remplir les champs pour les 3 années."}]
[null,{"$f":"\"             Si non: Veuillez remplir le montant pour l'année \" & $K$27 & \".\"","v":"             Si non: Veuillez remplir le montant pour l'année 2023."}]
[]
[null,"Profits",null,null,null,null,null,null,{"$f":"\"X-3 (\" & $K$27-3 & \")\"","v":"X-3 (2020)"},{"$f":"\"X-2 (\" & $K$27-2 & \")\"","v":"X-2 (2021)"},{"$f":"\"X-1 (\" & $K$27-1 & \")\"","v":"X-1 (2022)"},{"$f":"\"X (\" & $K$27 & \")\"","v":"X (2023)"},null,null,"Samenlevingsvorm"]
[null,"1650 / 2650 recettes provenant de l'exercice de la profession (+)",null,null,null,null,null,null,0,0,0,0,null,null,1,"gehuwd","marié(e)"]
[null,"1669 / 2669 rémunérations attribuées à votre conjoint aidant ou cohabitant légal aidant (-)",null,null,null,null,null,null,0,0,0,0,null,null,2,"wettelijk samenwonend","cohabitant légalement"]
[null,"1657 / 2657 autres frais professionnels  (-)",null,null,null,null,null,null,0,0,0,0,null,null,3,"ongehuwd","célibataire"]
[null,"1658 / 2658 Recettes obtenues par des sportifs dans le cadre de leurs prestations sportives (+)",null,null,null,null,null,null,0,0,0,0,null,null,4,"feitelijk samenwonend","cohabitant de fait"]
[null,"1659 / 2659 Recettes obtenues par des formateurs, entraîneurs et accompagnateurs pour leur activité au profit de sportifs (+)",null,null,null,null,null,null,0,0,0,0]
[null,"1652 / 2652 Arriérés d'honoraires (+)",null,null,null,null,null,null,0,0,0,0]
[null,"1660 / 2660 Profits antérieurement exonérés qui deviennent imposables (à l'exclusion des plus-values): montant de l'exonération pour pertes professionnelles futures qui a été demandée pour l'exercice d'imposition 2020 (+)",null,null,null,null,null,null,0,0,0,0]
[null,"1651 / 2651 Autres profits antérieurement exonérés qui deviennent imposables (à l'exclusion des plus-values) (+)",null,null,null,null,null,null,0,0,0,0]
[null,"1674 / 2674 Profits correspondant aux frais réels de réalisation d'éléments de l'actif sur lesquels vous avez réalisé une plus-value (imposable ou non) pendant la période imposable, et qui ont été déduits antérieurement (+)",null,null,null,null,null,null,0,0,0,0]
[null,"1655 / 2655 Indemnités et primes imposables distinctement à 16,5 %, dont parfois le droit passerelle (+)",null,null,null,null,null,null,0,0,0,0,null,null,"gepresteerd voor 1e POZ"]
[null,"1667 / 2667 Indemnités et primes imposables distinctement à 33 % (+)",null,null,null,null,null,null,0,0,0,0,null,null,"Valider",1]
[null,"1661 / 2661 Indemnités et primes imposables globalement, dont parfois le droit passerelle (+)",null,null,null,null,null,null,0,0,0,0,null,null,"Ne pas valider",2]
[null,"Revenu professionnel imposable corrigé belastbaar beroepsinkomen",null,null,null,null,null,null,{"$f":"I72-I73-I74+I75+I76+I77+I78+I79+I80+I81+I82+I83","v":0},{"$f":"J72-J73-J74+J75+J76+J77+J78+J79+J80+J81+J82+J83","v":0},0,{"$f":"L72-L73-L74+L75+L76+L77+L78+L79+L80+L81+L82+L83","v":0}]
[]
[null,"3. Catégorie ‘conjoint aidant’",null,null,null,null,null,null,null,null,null,null,null,null,"start POZ-teller",{"$f":"DATE(YEAR(I20)-I23,MONTH(I20)-J23,DAY(I20))","v":"2020-01-01"}]
[null,{"$f":" \"Si le code “1450 of 2450” est complété pour au moins une année dans \" & K27-3 & \", \" & K27-2 & \", \" & K27-1 & \" ?\"","v":"Si le code “1450 of 2450” est complété pour au moins une année dans 2020, 2021, 2022 ?"}]
[null,{"$f":"\"             Si oui : Veuillez remplir les champs pour les 3 années.\"","v":"             Si oui : Veuillez remplir les champs pour les 3 années."}]
[null,{"$f":"\"             Si non: Veuillez remplir le montant pour l'année \" & $K$27 & \".\"","v":"             Si non: Veuillez remplir le montant pour l'année 2023."}]
[]
[null,"Rémunération du conjoint aidant ",null,null,null,null,null,null,{"$f":"\"X-3 (\" & $K$27-3 & \")\"","v":"X-3 (2020)"},{"$f":"\"X-2 (\" & $K$27-2 & \")\"","v":"X-2 (2021)"},{"$f":"\"X-1 (\" & $K$27-1 & \")\"","v":"X-1 (2022)"},{"$f":"\"X (\" & $K$27 & \")\"","v":"X (2023)"}]
[null,"1450 / 2450 Rémunérations attribuées par votre conjoint ou votre cohabitant légal (+)",null,null,null,null,null,null,0,0,0,0]
[null,"1452 / 2452 autres frais professionnels propres (-)",null,null,null,null,null,null,0,0,0,0]
[null,"Revenu professionnel imposable corrigé",null,null,null,null,null,null,{"$f":"I92-I93","v":0},{"$f":"J92-J93","v":0},{"$f":"K92-K93","v":0},{"$f":"L92-L93","v":0}]
[]
[null,"4. Catégorie 'Revenus de remplacement' (uniquement ceux en remplacement de bénéfices ou profits! )"]
[]
[null,"Vervangingsinkomsten",null,null,null,null,null,null,{"$f":"\"X-3 (\" & $K$27-3 & \")\"","v":"X-3 (2020)"},{"$f":"\"X-2 (\" & $K$27-2 & \")\"","v":"X-2 (2021)"},{"$f":"\"X-1 (\" & $K$27-1 & \")\"","v":"X-1 (2022)"},{"$f":"\"X (\" & $K$27 & \")\"","v":"X (2023)"}]
[null,"1266 / 2266 Indemnités légales de maladie-invalidité - Indemnités ordinaires (+)",null,null,null,null,null,null,0,0,0,0]
[null,"1303 / 2303 Indemnités légales de maladie-invalidité - Indemnités de décembre 2020 (autorité publique) (+)",null,null,null,null,null,null,0,0,0,0]
[null,"1268 / 2268 Indemnités légales de maladie-invalidité - Arriérés (+)",null,null,null,null,null,null,0,0,0,0]
[null,"1269 / 2269 Indemnités complémentaires en cas de maladie ou d'invalidité (+)",null,null,null,null,null,null,0,0,0,0]
[null,"1271 / 2271 Autres revenus de remplacement, dont parfois le droit passerelle (+)",null,null,null,null,null,null,0,0,0,0]
[null,"1302 / 2302 Indemnités complémentaires en cas de maladie ou d’invalidité; indemnités en cas de maladie professionnelle ou d'accident du travail (légales et complémentaires); ou autres revenus de remplacement de décembre 2020 (autorité publique), dont parfois le droit passerelle (+)",null,null,null,null,null,null,0,0,0,0]
[null,"1272 / 2272 Arriérés d’indemnités complémentaires en cas de maladie ou d’invalidité, d’indemnités en cas de maladie professionnelle ou d'accident du travail (légales et complémentaires) ou d’autres revenus de remplacement, dont parfois le droit passerelle (+)",null,null,null,null,null,null,0,0,0,0]
[null,"Revenu professionnel imposable corrigé",null,null,null,null,null,null,{"$f":"I99+I100+I101+I102+I103+I104+I105","v":0},{"$f":"J99+J100+J101+J102+J103+J104+J105","v":0},0,{"$f":"L99+L100+L101+L102+L103+L104+L105","v":0}]
[]
[null,"5. Synthèse"]
[null,"TOTAL par année",null,null,null,null,null,null,{"$f":"\"X-3 (\" & $K$27-3 & \")\"","v":"X-3 (2020)"},{"$f":"\"X-2 (\" & $K$27-2 & \")\"","v":"X-2 (2021)"},{"$f":"\"X-1 (\" & $K$27-1 & \")\"","v":"X-1 (2022)"},{"$f":"\"X (\" & $K$27 & \")\"","v":"X (2023)"}]
[null,"Revenu professionnel imposable corrigé",null,null,null,null,null,null,{"$f":"IF(AND(I106+I94+I84+I61=0,COUNTIFS(I50:I60,\"<>0\")+COUNTIFS(I72:I83,\"<>0\")+COUNTIFS(I92:I93,\"<>0\")+ COUNTIFS(I99:I105,\"<>0\")=0),\"NVT\",I106+I94+I84+I61)","v":"NVT"},{"$f":"IF(AND(J106+J94+J84+J61=0,COUNTIFS(J50:J60,\"<>0\")+COUNTIFS(J72:J83,\"<>0\")+COUNTIFS(J92:J93,\"<>0\")+ COUNTIFS(J99:J105,\"<>0\")=0),\"NVT\",J106+J94+J84+J61)","v":"NVT"},{"$f":"IF(AND(K106+K94+K84+K61=0,COUNTIFS(K50:K60,\"<>0\")+COUNTIFS(K72:K83,\"<>0\")+COUNTIFS(K92:K93,\"<>0\")+ COUNTIFS(K99:K105,\"<>0\")=0),\"NVT\",K106+K94+K84+K61)","v":"NVT"},{"$f":"L106+L94+L84+L61","v":0}]
[]
[null,"Revenu de référence : Revenu professionnel imposable corrigé (moyen)",null,null,null,null,null,null,{"$f":"IF(COUNTIFS(I110:K110,\"NVT\")=3,L110,SUM(I110:K110)/(3-COUNTIFS(I110:K110,\"NVT\")))","v":0}]
[]
[null,"Capitaux de pension déjà assurés dans des autres plans de pension (*)",null,null,null,null,null,null,null,"A prendre en compte"]
[null,"Type","Date d'effet","Date terme","Age terme","Réversibilité","Indexation","Date de réduction","Prestation attendue","Capital","Capital","Coeff"]
[null,null,null,null,null,null,null,null,null,"(passé)","(passé + fut)"]
[null,"Assurance de groupe",null,null,{"$f":"IF(D117=\"\",\"\",TRUNC(DAYS360($I$9,D117)/360))","v":""},{"$f":"IF(VLOOKUP($I$14,$T$9:$U$14,2,FALSE)>=3,0,80%)","v":0},0.02,null,null,{"$f":"IF(ISBLANK(H117),IFERROR(TRUNC(DAYS360(MAX(C117,$P$86),$I$6)/30)/TRUNC(DAYS360(C117,D117)/30)*I117*$J$143/L117,0),IF(H117>$P$86,IFERROR(TRUNC(DAYS360(MAX(C117,$P$86),MIN(H117,$I$6))/30)/TRUNC(DAYS360(C117,H117)/30)*I117*$J$143/L117,0),0))","v":0},{"$f":"IF(ISBLANK(H117),IFERROR(TRUNC(DAYS360(MAX(C117,$P$86),D117)/30)/TRUNC(DAYS360(C117,D117)/30)*I117*$J$143/L117,0),IF(H117>$P$86,IFERROR(TRUNC(DAYS360(MAX(C117,$P$86),H117)/30)/TRUNC(DAYS360(C117,H117)/30)*I117*$J$143/L117,0),0))","v":0},{"$f":"IF(I117=0,\"\",IF($G117=0,(VLOOKUP($E117,$O$21:$S$46,2)+$F117/80%*(VLOOKUP($E117,$O$21:$S$46,4)-VLOOKUP($E117,$O$21:$S$46,2))),(VLOOKUP($E117,$O$21:$S$46,3)+$F117/80%*(VLOOKUP($E117,$O$21:$S$46,5)-VLOOKUP($E117,$O$21:$S$46,3)))))","v":""}]
[null,null,null,null,"",{"$f":"IF(VLOOKUP($I$14,$T$9:$U$14,2,FALSE)>=3,0,80%)","v":0},0.02,null,null,{"$f":"IF(ISBLANK(H118),IFERROR(TRUNC(DAYS360(MAX(C118,$P$86),$I$6)/30)/TRUNC(DAYS360(C118,D118)/30)*I118*$J$143/L118,0),IF(H118>$P$86,IFERROR(TRUNC(DAYS360(MAX(C118,$P$86),MIN(H118,$I$6))/30)/TRUNC(DAYS360(C118,H118)/30)*I118*$J$143/L118,0),0))","v":0},{"$f":"IF(ISBLANK(H118),IFERROR(TRUNC(DAYS360(MAX(C118,$P$86),D118)/30)/TRUNC(DAYS360(C118,D118)/30)*I118*$J$143/L118,0),IF(H118>$P$86,IFERROR(TRUNC(DAYS360(MAX(C118,$P$86),H118)/30)/TRUNC(DAYS360(C118,H118)/30)*I118*$J$143/L118,0),0))","v":0},{"$f":"IF(I118=0,\"\",IF($G118=0,(VLOOKUP($E118,$O$21:$S$46,2)+$F118/80%*(VLOOKUP($E118,$O$21:$S$46,4)-VLOOKUP($E118,$O$21:$S$46,2))),(VLOOKUP($E118,$O$21:$S$46,3)+$F118/80%*(VLOOKUP($E118,$O$21:$S$46,5)-VLOOKUP($E118,$O$21:$S$46,3)))))","v":""}]
[null,null,null,null,"",0,0.02,null,null,0,0,""]
[null,null,null,null,"",0,0.02,null,null,0,0,""]
[null,null,null,null,"",0,0.02,null,null,0,0,""]
[null,null,null,null,"",0,0.02,null,null,0,0,""]
[null,null,null,null,null,null,null,null,null,{"$f":"SUM(J117:J122)","v":0},{"$f":"SUM(K117:K122)","v":0}]
[]
[null,"(*) Nous devons tenir compte des autres capitaux de pension pour lesquels vous avez continué à payer la prime depuis que vous avez pris votre CPTI, (ou depuis le 01/01/2018, si vous avez choisi la "]
[null,"prise en compte de la période entre le 01/01/2018 et la date à laquelle vous avez souscrit la CPTI): PLC(I) sociale, INAMI, promesse de pension sous seing privé, assurance groupe, ADE, fonds de "]
[null,"pension, CPTI, EIP, PLCS, continuation à titre personnel"]
[]
[]
[]
[null,"Calcul règle de 80% - calcul du capital de pension CPTI maximal"]
[]
[null,"Revenu de référence",null,null,null,null,null,null,null,{"$f":"$I$112","v":0}]
[null,null,null,null,null,null,null,null,"X 80 %"]
[null,null,null,null,null,null,null,null,"=",{"$f":"$J$133 * 0.8","v":0}]
[]
[null,"Pension légale estimée ",null,null,null,null,null,null,"-",{"$f":"MAX(IF((I19*0.25*(I17*12+J17)/DATEDIF(I16,I13,\"m\"))<VLOOKUP(YEAR(I6),O49:R67,2,0)*(I17*12+J17)/DATEDIF(I16,I13,\"m\"),VLOOKUP(YEAR(I6),O49:R67,2,0)*(I17*12+J17)/DATEDIF(I16,I13,\"m\"),IF((I19*0.25*(I17*12+J17)/DATEDIF(I16,I13,\"m\"))>VLOOKUP(YEAR(I6),O49:R67,3,0)*(I17*12+J17)/DATEDIF(I16,I13,\"m\"),VLOOKUP(YEAR(I6),O49:R67,3,0)*(I17*12+J17)/DATEDIF(I16,I13,\"m\"),(I19*0.25*(I17*12+J17)/DATEDIF(I16,I13,\"m\"))))+IF(J133*0.5*(DATEDIF(I16,I13,\"m\")-(I17*12)-J17)/DATEDIF(I16,I13,\"m\")>VLOOKUP(YEAR(I6),O48:R67,4,0)*0.5*(DATEDIF(I16,I13,\"m\")-(I17*12)-J17)/DATEDIF(I16,I13,\"m\"),VLOOKUP(YEAR(I6),O48:R67,4,0)*0.5*(DATEDIF(I16,I13,\"m\")-(I17*12)-J17)/DATEDIF(I16,I13,\"m\"),J133*0.5*(DATEDIF(I16,I13,\"m\")-(I17*12)-J17)/DATEDIF(I16,I13,\"m\")),VLOOKUP(YEAR(I6),O49:R67,2,0))","v":19643.990000000002}]
[null,null,null,null,null,null,null,null,"=",{"$f":"$J$135-$J$137","v":-19643.990000000002}]
[]
[null,"Nombres d'années prestées et à prester / 480",null,null,null,null,null,null,"X",{"$f":" $I$24 / 480","v":0.92500000000000004}]
[null,null,null,null,null,null,null,null,"=",{"$f":"$J$138*$J$140","v":-18170.690750000002}]
[]
[null,"Coefficient de conversion",null,null,null,null,null,null,"X ",{"$f":"IF(VLOOKUP($I$14,$T$9:$U$14,2,FALSE)<3,VLOOKUP(MIN(IF($J$12>0,$I$12+1,$I$12),65),$O$7:$Q$12,3),VLOOKUP(MIN(IF($J$12>0,$I$12+1,$I$12),65),$O$7:$Q$12,2))","v":13.4282}]
[null,"Capital maximum (participation bénéficiaires inclus)",null,null,null,null,null,null,"=",{"$f":"$J$141*$J$143","v":-243999.66952915004}]
[]
[null,"Coefficient de participation au x bénéfices",null,null,null,null,null,null,": 1,20"]
[null,"Capital maximum (participation bénéficiaires exclus)",null,null,null,null,null,null,"=",{"$f":"$J$144/1.2","v":-203333.05794095836}]
[]
[null,"Capital de pension déjà assuré (passé et futur)",null,null,null,null,null,null,"-",{"$f":"K123","v":0}]
[]
[null,"Capital pension encore à assurer",null,null,null,null,null,null,"=",{"$f":"$J$147-$J$149","v":-203333.05794095836}]
[]
[null,"Capital maximal assurable pour les années déjà prestées (Passé)",null,null,"AA MM",{"$f":"IF($I$24=480,IF($G$157=0,40-$F$157,39-$F$157),TRUNC(($I$24-$F$157*12-$G$157)/12))","v":3},{"$f":"$I$24-$F$157*12-$G$157-$F$153*12","v":0},null,null,{"$f":"J147*(I24-(I22*12+J22))/I24","v":-16486.464157375001}]
[null,"Capitaux réduits déjà assurés",null,null,null,null,null,null,"-",{"$f":"J123","v":0}]
[null,"Capital de backservice à assurer",null,null,null,null,null,null,"=",{"$f":"IF($J$153-$J$154<0,0,$J$153-$J$154)","v":0}]
[]
[null,"Capital maximal pour les années restant à prester (Futur)",null,null,"AA MM",{"$f":"I22","v":34},{"$f":"J22","v":0},null,null,{"$f":"$J$147*($F$157*12+$G$157)/$I$24+IF($J$155=0,$J$153-$J$154,0)","v":-203333.05794095836}]
[null,"Capital déja assuré hors participation bénéficiaire",null,null,null,null,null,null,"-",{"$f":"$K$123-$J$123","v":0}]
[null,"Capital à assurer tenant compte des primes annuelles futures",null,null,null,null,null,null,"=",{"$f":"$J$157-$J$158","v":-203333.05794095836}]
[null,"Maximum kapitaal backservice","JJ MM",{"$f":"IF($I$24=480,IF($E$164=0,40-$D$164,39-$D$164),INT(($I$24-$D$164*12-$E$164)/12))","v":3},{"$f":"$I$24-$D$164*12-$E$164-$D$160*12","v":0},null,null,null,null,{"$f":"$J$147*($I$24-(($D$164*12)+$E$164))/$I$24","v":-16486.464157375001}]
[null,"Reeds verzekerd pensioenkapitaal (verleden)",null,null,null,null,null,null,"-",{"$f":"$J$123","v":0}]
[null,"Te verzekeren backservice kapitaal",null,null,null,null,null,null,"=",{"$f":"IF($J$160-$J$161<0,0,$J$160-$J$161)","v":0}]
[]
[null,"Maximum kapitaal toekomst","JJ MM",{"$f":"$I$22","v":34},{"$f":"$J$22","v":0},null,null,null,null,{"$f":"$J$147*(($D$164*12)+$E$164)/$I$24+IF(J162=0,$J$160-$J$161,0)","v":-203333.05794095836}]
[null,"Reeds verzekerd pensioenkapitaal (toekomst)",null,null,null,null,null,null,"-",{"$f":"$K$123-J123","v":0}]
[null,"Te verzekeren kapitaal tegen jaarpremie",null,null,null,null,null,null,"=",{"$f":"$J$164-$J$165","v":-203333.05794095836}]
[]
[null,"Capital pension maximum à assurer",null,null,null,null,null,null,null,{"$f":"$J$147","v":-203333.05794095836}]
[null,"Capital pension déjà assuré",null,null,null,null,null,null,"-",{"$f":"$J$149","v":0}]
[null,"Capital pension encore à assurer",null,null,null,null,null,null,"=",{"$f":"$J$168-$J$169","v":-203333.05794095836}]
[]
[null,"Estimation de la prime max annuelle"]
[]
[null,"Frais Baloise",null,null,null,null,null,null,0]
[null,"Frais Courtier",null,null,null,null,null,null,0.02]
[null,"Taux de capitalisation",null,null,null,null,null,null,1.6E-2]
[]
[]
[null,"(montants brut, taxes compris)",null,null,null,null,null,null,"Prime annuelle"]
[null,"Max prime annuelle",null,null,null,null,null,null,{"$f":"MAX(0,J151*(1+4.4%)/(1-I174-I175)*(1-(1+I176-0.18%))/(1-(1+I176-0.18%)^(DAYS360(I6,I13)/360+1)))","v":0}]
[]
[null,"Prime unique",null,null,null,null,null,null,{"$f":"MAX(0,J155*(1+4.4%)/(1-$I$174-$I$175)*(1/(1+$I$176-0.18%)^(DAYS360($I$6,$I$13)/360)))","v":0}]
[null,"Prime annuelle",null,null,null,null,null,null,{"$f":"MAX(0,J159*(1+4.4%)/(1-$I$174-$I$175)*(1-(1+$I$176-0.18%))/(1-(1+$I$176-0.18%)^(DAYS360($I$6,$I$13)/360+1)))","v":0}]
[]
[null,"Disclaimer : "]
[null,"Cette application donne une première indication de la prime maximale déductible dans le cadre d'un contrat Convention de Pension pour Travailleurs Indépendants sans entreprise (CPTI)"]
[null,"Le résultat est une simulation en ne vaut pas offre, ni conseil fiscal ou juridique. "]
[null,"Nous vous prions de contacter votre courtier"]
[]
[null,"Traitement des données personnelles: votre vie privée"]
[null,"Pour quelles raisons utilisons-nous vos données personnelles?"]
[null,"En tant qu'assureur, nous traitons vos données personnelles. Les données personnelles sont des données portant sur votre statut personnel, par exemple votre âge, votre adresse, "]
[null,"votre date de naissance. "]
[null,"Elles sont nécessaires pour évaluer le risque et traiter vos polices et vos sinistres"]
[null,"Nous n'utilisons ces données que dans ce but précis ou parce que la loi nous y oblige."]
[null,"Nous ne traitons vos données médicales que si vous nous donnez explicitement votre autorisation."]
[null,"Vos droits légaux"]
[null,"Vous pouvez consulter vos données personnelles et les faire corriger, compléter, modifier ou supprimer."]
[null,"Plus d'informations"]
[null,"Ceci n'est qu'un résumé de notre politique en matière de vie privée. Si vous voulez connaître précisément vos droits et vos obligations,"]
[null," n'hésitez pas à consulter notre politique en matière de vie privée complète sur notre site web (www.baloise.be/vieprivee). Nous pouvons aussi vous remettre une version papier."]
[null,"Données de contact"]
[null,"Pour toutes vos questions sur la vie privée, n'hésitez pas à vous adresser à notre Data Protection Officer (DPO):"]
[null,"Baloise Insurance - Data Protection Officer"]
[null,"Posthofbrug 16"]
[null,"2600 Antwerpen"]
[null,"Courriel: privacy@baloise.be"]
[]
[null,"Baloise Belgium SA | Entreprise d’assurances agréée sous le n° de code BNB 0096 | Baloise est le nom commercial de Baloise Belgium SA"]
[null,"Siège: City Link, Posthofbrug 16, 2600 Antwerpen, Belgique | TVA BE 0400.048.883 | RPM Antwerpen, division Antwerpen | Tél.: +32 3 247 21 11"]
[null,"Établissement: Boulevard du Roi Albert II 19, 1210 Bruxelles, Belgique | Tél.: +32 2 773 03 11 | IBAN: BE31 4100 0007 1155 | BIC: KREDBEBB | info@baloise.be | www.baloise.be"]
[null,"ER: Baloise, City Link, Posthofbrug 16, 2600 Antwerpen, Belgique"]